Cogmind - Beta 13 @@@ ROGUE MODE // 2024.04.16 @ 19:38:59 Player: Isara Result: Destroyed by D-53 Grenadier with Mini Grenade Launcher Performance ------------- Evolutions (1) 500 Regions Visited (4) 800 Robots Destroyed (15) 75 Value Destroyed (317) 317 Prototype IDs (1) 20 Alien Tech Used (0) 0 Bonus (0) 0 TOTAL SCORE: 1712 Bonus ------- None Cogmind --------- Core Integrity 0/400 Matter 290/300 Energy 99/100 System Corruption 0% Temperature Cool (0) Movement Core (50) Location -9/Mines Parts ------- > --- POWER (2) -------- (None) > --- PROPULSION (2) --- (None) > --- UTILITY (3) ------ Signal Interpreter > --- WEAPON (2) ------- (None) > --- INVENTORY (5) ---- (None) Peak State ------------ > --- POWER ------------ Light Ion Engine Improved Ion Engine > --- PROPULSION ------- Compact Wheel Compact Wheel > --- UTILITY ---------- Sensor Array Signal Interpreter Light Armor Plating > --- WEAPON ----------- EM Pulse Cannon EM Pulse Cannon > --- INVENTORY -------- Light Ion Engine Light Armor Plating Hardened Light Armor Plating Precision Beam Rifle Plasma Cutter [Rating: 15] Favorites ----------- Power Light Ion Engine Engine Light Ion Engine Propulsion Wheel Wheel Wheel Hover Unit Hover Unit Utility Signal Interpreter Device Sensor Array Storage Medium Matter Pod Processor Signal Interpreter Protection Light Armor Plating Weapon EM Pulse Cannon Energy Gun EM Pulse Gun Energy Cannon EM Pulse Cannon Ballistic Gun Heavy Assault Rifle Ballistic Cannon Light Cannon Launcher Grenade Launcher Special Weapon Plasma Cutter Build | -11 -10 -10 -9 -9 ------- Run | Yrd Mat Min Mat Min Slots Evolved 2 | . . . 2 . Power 1 | . . . 1 . Propulsion . | . . . . . Utility 1 | . . . 1 . Weapon . | . . . . . Parts Attached 34 | 8 8 . 13 5 Power 5 | 1 . . 2 2 Engine 5 | 1 . . 2 2 Core . | . . . . . Reactor . | . . . . . Propulsion 6 | 2 2 . 2 . Treads . | . . . . . Leg . | . . . . . Wheel 4 | 2 . . 2 . Hover 2 | . 2 . . . Flight . | . . . . . Utility 9 | 2 4 . 2 1 Device 4 | 1 2 . 1 . Storage 1 | 1 . . . . Processor 1 | . 1 . . . Hackware . | . . . . . Protection 3 | . 1 . 1 1 Artifact . | . . . . . Weapon 14 | 3 2 . 7 2 Energy Gun 3 | 2 . . . 1 Energy Cannon 3 | . . . 2 1 Ballistic Gun 1 | . . . 1 . Ballistic Cannon 2 | . 1 . 1 . Launcher 1 | . 1 . . . Special Weapon 4 | 1 . . 3 . Impact Weapon . | . . . . . Slashing Weapon . | . . . . . Piercing Weapon . | . . . . . Special Melee Weapon . | . . . . . Unidentified Prototypes 1 | . . . . 1 Corrupted Parts 1 | 1 . . . . System Corruption 1 | 1 . . . . Parts Lost 15 | . . 2 2 11 Power 3 | . . . . 3 Propulsion 3 | . . 1 1 1 Utility 3 | . . . . 3 Weapon 6 | . . 1 1 4 Highest Loss Streak 9 | . . 2 2 9 To Critical Strikes . | . . . . . Average Slot Usage (%) 87 | . 98 78 85 79 Engine 19 | . 14 14 22 19 Wheel 12 | . 19 . 8 13 Hover 4 | . 8 14 3 . Device 10 | . 18 . 11 . Processor 9 | . 5 14 11 11 Protection 9 | . 1 14 11 17 Energy Cannon 7 | . . . 9 15 Ballistic Cannon 5 | . 12 14 3 . Launcher 3 | . 10 7 . . Special Weapon 3 | . 1 . 5 1 Naked Turns . | . . . . . Heaviest Build 28 | 10 12 12 28 26 Greatest Support 32 | 20 20 12 32 32 Greatest Overweight (x) 6 | . 1 1 5 6 Average Overweight (x) . | . . . . . Largest Inventory Capacity 5 | 5 5 5 5 5 Average Capacity 5 | 5 5 5 5 5 Most Carried 5 | 5 5 5 5 4 Average Carried 3 | 2 4 5 3 2 Final Capacity 5 | 5 5 5 5 5 Final Carried 5 | 4 5 5 4 . Class Distribution -------------------- 100% | Mutant Dominant Class ---------------- Mutant | -10/Materials Mutant | -10/Mines Mutant | -9/Materials Mutant | -9/Mines Resources | -11 -10 -10 -9 -9 ----------- Run | Yrd Mat Min Mat Min Matter Collected 651 | 380 88 . 131 52 Remotely . | . . . . . Salvage Created 491 | 110 55 . 254 72 Parts 31 | 8 8 . 10 5 Haulers Intercepted . | . . . . . Recyclers Shooed 1 | . . . 1 . Parts Field Recycled . | . . . . . Retrieved Matter . | . . . . . Parts Self-Destructed . | . . . . . Prevented . | . . . . . Kills | -11 -10 -10 -9 -9 ------- Run | Yrd Mat Min Mat Min Combat Hostiles Destroyed 9 | 1 1 . 3 4 Guns 1 | 1 . . . . Cannons 7 | . 1 . 2 4 Classes Destroyed 8 | 3 2 . 2 1 Worker 1 | 1 . . . . Tunneler 2 | 2 . . . . Recycler 1 | . . . 1 . Operator 1 | . 1 . . . Watcher 1 | . 1 . . . Swarmer 4 | . . . . 4 Grunt 4 | 1 1 . 2 . Sentry 1 | . . . 1 . Best Kill Streak 2 | 2 1 . 2 2 Combat Bots Only 2 | 1 1 . 1 2 Max Kills in Single Turn 1 | 1 1 . 1 1 Gunslinging . | . . . . . Exploded . | . . . . . Melee . | . . . . . Uniques/NPCs Destroyed . | . . . . . Combat | -11 -10 -10 -9 -9 -------- Run | Yrd Mat Min Mat Min Hostile Shots Fired 114 | 6 11 13 22 62 Missed 30 | 2 4 4 8 12 Damage Taken 1495 | 48 73 113 210 1051 Core 438 | 10 11 13 43 361 Absorbed by Shields . | . . . . . Core Remaining (%) 91 | 96 . 86 . . Volleys Fired 60 | 16 8 . 21 15 Largest 2 | 2 2 . 2 2 Hottest 126 | 90 65 . 126 126 Shots Fired 83 | 26 10 . 31 16 Gun 26 | 26 . . . . Cannon 35 | . 8 . 11 16 Launcher 2 | . 2 . . . Special 20 | . . . 20 . Kinetic 11 | . 8 . 3 . Thermal 30 | 10 . . 20 . Explosive 2 | . 2 . . . Electromagnetic 40 | 16 . . 8 16 Robot Hit Streak 5 | 5 2 . 5 3 Robot Miss Streak 3 | 3 2 . 1 2 Penetration Max . | . . . . . Secondary Targets . | . . . . . Shots Hit Robots 41 | 14 5 . 14 8 Core Hits 17 | 5 3 . 5 4 Critical Kills . | . . . . . Critical Parts Destroyed . | . . . . . Critical Strikes 2 | . . . . 2 Corrupt 2 | . . . . 2 Melee Attacks . | . . . . . Impact . | . . . . . Slashing . | . . . . . Piercing . | . . . . . Sneak Attacks . | . . . . . Combat Hostiles . | . . . . . Follow-up Attacks . | . . . . . Damage Inflicted 813 | 206 118 . 266 223 Guns 196 | 196 . . . . Cannons 509 | . 73 . 213 223 Explosions 45 | . 45 . . . Melee . | . . . . . Ramming 10 | 10 . . . . Kinetic 125 | . 73 . 52 . Thermal 102 | 49 . . 53 . Explosive 45 | . 45 . . . Electromagnetic 531 | 147 . . 161 223 Impact . | . . . . . Slashing . | . . . . . Piercing . | . . . . . Highest Corruption 1 | 1 1 1 . . Average Corruption 1 | 1 1 1 . . Corruption Purged . | . . . . . Corruption Blocked . | . . . . . Effects 4 | 2 2 . . . Message Errors 1 | 1 . . . . Matter Fused 3 | 1 2 . . . Overload Shots . | . . . . . Overflow Damage 6 | . . . . 6 Projectiles 6 | . . . . 6 Explosions . | . . . . . Melee . | . . . . . Knockbacks 1 | . 1 . . . Impact . | . . . . . Kinetic 1 | . 1 . . . Secondary . | . . . . . Self-Inflicted Damage 5 | 5 . . . . Shots . | . . . . . Rammed 1 | 1 . . . . Targets Rammed 1 | 1 . . . . Kicked . | . . . . . Crushed . | . . . . . Highest Temperature 380 | 294 42 12 252 380 Average Temperature 157 | 141 24 12 79 224 Received Heat Transfer 246 | 24 36 87 99 . Effects 4 | . . . . 4 Shutdowns 2 | . . . . 2 Matter Decay 1 | . . . . 1 Short Circuit 1 | . . . . 1 Siege Activations . | . . . . . Robots Corrupted 1 | . . . 1 . Combat Hostiles 1 | . . . 1 . Parts Fried 2 | . . . 1 1 Impact Corruptions . | . . . . . Robots Melted . | . . . . . Combat Hostiles . | . . . . . Parts Melted 2 | 1 . . 1 . Heat Transferred 333 | 148 . . 185 . Parts Sabotaged . | . . . . . Parts Stolen . | . . . . . Parts Stripped . | . . . . . Power Chain Reactions . | . . . . . Alert | -11 -10 -10 -9 -9 ------- Run | Yrd Mat Min Mat Min Peak Influence 144 | 35 144 55 108 100 Initial 55 | . 22 55 13 . Average 42 | 22 45 42 44 74 Maximum Alert Level . | . . . . . Low Security (%) 100 | 100 100 100 100 100 Level 1 . | . . . . . Level 2 . | . . . . . Level 3 . | . . . . . Level 4 . | . . . . . Level 5 . | . . . . . High Security . | . . . . . Max Security . | . . . . . Squads Dispatched 1 | . 1 . . . Investigation . | . . . . . Extermination . | . . . . . Reinforcement 1 | . 1 . . . Assault . | . . . . . Garrison . | . . . . . Intercept . | . . . . . Searches Triggered . | . . . . . Construction Impeded . | . . . . . Haulers Reinforced . | . . . . . Active Scanning Responses . | . . . . . Cargo Convoy Interrupts . | . . . . . Stealth | -11 -10 -10 -9 -9 --------- Run | Yrd Mat Min Mat Min Distress Signals . | . . . . . Communications Jammed . | . . . . . Distress Signals . | . . . . . Times Spotted 22 | 1 8 2 5 6 Peak Tracking Total 5 | 1 5 2 3 4 Tactical Retreats 1 | . . . 1 . Traps | -11 -10 -10 -9 -9 ------- Run | Yrd Mat Min Mat Min Traps Triggered . | . . . . . Indirectly . | . . . . . Trap Hack Attempts . | . . . . . Triggered . | . . . . . Disarmed . | . . . . . Reprogrammed . | . . . . . Reused . | . . . . . Traps Extracted . | . . . . . Installed . | . . . . . Triggered . | . . . . . Machines | -11 -10 -10 -9 -9 ---------- Run | Yrd Mat Min Mat Min Machines Disabled 3 | . 1 . . 2 Max in Single Turn 1 | . 1 . . 1 Machines Repaired . | . . . . . Machines Dismantled . | . . . . . Machines Sabotaged . | . . . . . Overloaded Fab Kills . | . . . . . Hacking | -11 -10 -10 -9 -9 --------- Run | Yrd Mat Min Mat Min Machines Accessed 3 | . 3 . . . Terminals 3 | . 3 . . . Fabricators . | . . . . . Repair Stations . | . . . . . Recycling Units . | . . . . . Scanalyzers . | . . . . . Garrison Access . | . . . . . Total Hacks 7 | . 7 . . . Successful 1 | . 1 . . . Failed 6 | . 6 . . . Catastrophic 1 | . 1 . . . Database Lockouts . | . . . . . Manual . | . . . . . Terminals 7 | . 7 . . . Fabricators . | . . . . . Repair Stations . | . . . . . Recycling Units . | . . . . . Scanalyzers . | . . . . . Garrison Access . | . . . . . Terminal Hacks 1 | . 1 . . . Recall Investigation 1 | . 1 . . . Fabricator Hacks . | . . . . . Repair Station Hacks . | . . . . . Recycling Unit Hacks . | . . . . . Scanalyzer . | . . . . . Garrison Access Hacks . | . . . . . Unauthorized Hacks . | . . . . . Terminals . | . . . . . Fabricators . | . . . . . Repair Stations . | . . . . . Recycling Units . | . . . . . Scanalyzers . | . . . . . Garrison Access . | . . . . . Data Cores Recovered . | . . . . . Used . | . . . . . Hacking Detections 2 | . 2 . . . Full Trace Events . | . . . . . Feedback Events . | . . . . . Feedback Blocked . | . . . . . Robot Schematics Acquired . | . . . . . Robots Built . | . . . . . Authchips . | . . . . . Time . | . . . . . Total Robot Build Rating . | . . . . . Part Schematics Acquired . | . . . . . Parts Built . | . . . . . Authchips . | . . . . . Time . | . . . . . Total Part Build Rating . | . . . . . Parts Repaired . | . . . . . Time . | . . . . . Parts Recycled . | . . . . . Recycled Matter . | . . . . . Retrieved Matter . | . . . . . Retrieved Components . | . . . . . Parts Scanalyzed . | . . . . . Part Schematics Acquired . | . . . . . Parts Damaged . | . . . . . Bothacking | -11 -10 -10 -9 -9 ------------ Run | Yrd Mat Min Mat Min Used RIF Installer . | . . . . . Robots Hacked . | . . . . . Non-combat . | . . . . . Combat . | . . . . . Robot Hacks Applied . | . . . . . Relay Couplers Released . | . . . . . Fabnet Peak Effective % . | . . . . . Robots Rewired . | . . . . . Allies Hacked . | . . . . . Hacks Repelled . | . . . . . Allies | -11 -10 -10 -9 -9 -------- Run | Yrd Mat Min Mat Min Total Allies . | . . . . . Largest Group . | . . . . . Highest-Rated Group . | . . . . . Highest-Rated Ally . | . . . . . Total Orders . | . . . . . Ally Attacks . | . . . . . Total Damage . | . . . . . Kills . | . . . . . Allies Corrupted . | . . . . . Allies Melted . | . . . . . Intel | -11 -10 -10 -9 -9 ------- Run | Yrd Mat Min Mat Min Robot Analysis Total . | . . . . . Derelict Logs Recovered . | . . . . . Drone Launches . | . . . . . Drone Recoveries . | . . . . . Exploration | -11 -10 -10 -9 -9 ------------- Run | Yrd Mat Min Mat Min Turns Passed 1171 | 320 240 20 445 146 Spaces Moved 960 | 327 273 18 264 78 Core 49 | 27 . . 8 14 Treads . | . . . . . Legs . | . . . . . Wheels 738 | 300 179 . 195 64 Hover 173 | . 94 18 61 . Flight . | . . . . . Fastest Speed 50 | 50 56 56 100 50 Average Speed 94 | 77 72 116 130 112 Slowest Speed 350 | 80 120 120 300 350 Overloaded Moves . | . . . . . Propulsion Burnouts . | . . . . . Robots Hopped . | . . . . . Cave-ins Triggered . | . . . . . Exploration Rate (%) 16 | 6 34 8 17 17 Regions Visited 4 Branch Regions 2 Pre-discovered Areas . | . . . . . Known Exits Taken 3 | . 1 1 1 . Unknown Exits Taken 1 | 1 . . . . Scrap Searched . | . . . . . Spaces Dug . | . . . . . Terrain Destroyed 12 | . 12 . . . Melee . | . . . . . Projectile . | . . . . . AOE 12 | . 12 . . . Terrain Rammed . | . . . . . Walls Destroyed . | . . . . . Machines Disabled . | . . . . . Actions | -11 -10 -10 -9 -9 --------- Run | Yrd Mat Min Mat Min Total 1131 | 368 309 17 316 121 Wait 21 | . . . 1 20 Move 956 | 326 272 17 263 78 Hop . | . . . . . Pick Up 36 | 14 10 . 11 1 Fast Attach . | . . . . . Attach 29 | 8 6 . 10 5 Detach 3 | . 2 . 1 . Swap 5 | . 2 . 3 . Drop 20 | 3 9 . 6 2 Fire 60 | 16 8 . 21 15 Melee . | . . . . . Ram 1 | 1 . . . . Kick . | . . . . . Crush . | . . . . . Escape Stasis . | . . . . . Rewire . | . . . . . Trap . | . . . . . Miscellaneous . | . . . . . Route ------- -11/Scrapyard -10/Materials -10/Mines -9/Materials -9/Mines (discovered 1 exit: [*Mat]) History --------- Turn | Location | Event 2 | -11/Scrapyard | Met Revision 17 103 | -11/Scrapyard | Discovered new exit (range 8) 321 | -11/Scrapyard | Entered Materials 322 | -10/Materials | Build established: Mutant 525 | -10/Materials | Discovered new exit (range 7) 560 | -10/Materials | Identified exit to Mines 561 | -10/Materials | Entered Mines 562 | -10/Mines | Discovered new exit (range 14) 580 | -10/Mines | Identified exit to Materials 581 | -10/Mines | Entered Materials 581 | -9/Materials | Evolved 2 slots: Power x1, Utility x1 904 | -9/Materials | Discovered new exit (range 16) 1025 | -9/Materials | Identified exit to Mines 1026 | -9/Materials | Entered Mines 1097 | -9/Mines | Assembled infested the area 1161 | -9/Mines | Core integrity fell below 50% 1167 | -9/Mines | Discovered new exit (range 11) 1170 | -9/Mines | Core integrity fell below 20% 1172 | -9/Mines | Destroyed by D-53 Grenadier with Mini Grenade Launcher Last Messages --------------- Lgt. Armor Plating destroyed. EM Pulse Cannon destroyed. U-05 Engineer builds a Wall. EM Pulse Cannon destroyed. The unstable cave ceiling collapses. Identified Prc. Beam Rifle. [Achievement: Risk Taker] Faulty integration damages Lgt. Ion Engine (-22). U-05 Engineer builds a Wall. The unstable cave ceiling collapses. U-05 Engineer lays Concrete. U-05 Engineer builds a Wall. Lgt. Ion Engine destroyed. Hrd. Light Armor Plating destroyed. EXIT=FOUND U-05 Engineer destroyed. The unstable cave ceiling collapses. Faulty Prc. Beam Rifle destroyed. [Achievement: First Step to Greatness] Map ----- +----------------------------------------------------+ | | | | | | | | | | | | | | | | | | | | | | | | | | | | | | | ?????????????????????????????????????????????????? | | ??????????????????????????????????????############ | | ??????????????????????????????????????# [ | | ??????????????????###?????????????????# """ " = | | ??????????????????# ????????????????# " " """ | | ??????????????????# #???????????????# """ | | ??????????????????# #??????????????# | | ???????????######## ###?########??# % | | ??????????# < # # #### | | ?????????????? % # ## | | ????????????????# """ @ # ####### ### | | ????????????????# """" #?#### #?? | | ?????????????????? """" # ### #?? | | ?????????????????# ## ####?? | | ?????????????????## ### #????? | | ??????????????????## #????? | | ???????????????????### dd ####????? | | ?????????????????????#### ## ##???????? | | ????????????????????????# # ##????????? | | ????????????????????????## < #????????? | | ????????????????????????# ##????????? | | ????????????????????????# #?????????? | | ????????????????????????# #?????????? | | ???????????????????????# ## ##?????????? | | ???????????????????????# ######## #??????????? | | ???????????????????????## ##??????? #??????????? | | ????????????????????????#####???????? #??????????? | | ????????????????????????????????????? #??????????? | | ????????????????????????????????????? #??????????? | | ????????????????????????????????????? #??????????? | | ????????????????????????????????????? ???????????? | | ????????????????????????????????????? ???????????? | | ?????????????????????????????????????????????????? | | ?????????????????????????????????????????????????? | | ?????????????????????????????????????????????????? | +----------------------------------------------------+ Best States ------------- Heat Dissipation 28 Energy Generation 17 Energy Capacity 290 Matter Stores 400 Matter Capacity 400 Sight Range 16 Robot Scan Range 14 Terrain Scan Density 10 Armor Coverage 300 Evasion (%) 53 Item Schematics ----------------- None Robot Schematics ------------------ None Fabricated ------------ Nothing Alien Tech Used ----------------- None Achievements -------------- First Step to Greatness Power Corrupts Risk Taker Uninvited Guest Challenges ------------ None Game ------ Seed MolecularParticleSplitter Manual? 0 Play Time 00:58:17 Cumulative 0.9 hours Start 2024.04.16 @ 18:20:10 End 2024.04.16 @ 19:38:59 Sessions 1 Manual Loads 0 Difficulty Rogue Special Mode None Game No. 1 Rogue 1 Adventurer 0 Explorer 0 Win Type - Total 0 Types 0/0/0/0/0/0/0/0/0 Lore% 0 Gallery% 2 Achievement% 1 Wizard Run 0 Options --------- Layout 1 ASCII 0 Keyboard 0 Movement Arrows Keybinds 0 Fullscreen 1 Font 32/Terminus Map View 25x17 Zoom Use 78% Tactical HUD 0 Map Filters NONE Filters NONE Steam 1 RUN: fd0a4e47-4aff-41c0-9feb-0d714cb91514